[Event "Early-Titled-Tuesday-Blitz-February-20-2024"]
[Site "Chess.com"]
[Date "2024.02.20"]
[Round "10"]
[White "guillembaches"]
[Black "Hudijegszid"]
[Result "0-1"]
[WhiteElo "2515"]
[BlackElo "2380"]
[TimeControl "180+1"]
[EndTime "9:58:29 PST"]
[Termination "Hudijegszid won on time"]

1. d4 {[%clk 0:03:00.9]} 1... d5 {[%clk 0:02:58.7]} 2. Nf3 {[%clk 0:03:01.5]}
2... e6 {[%clk 0:02:57.3]} 3. Bg5 {[%clk 0:03:01.6]} 3... Be7 {[%clk 0:02:57.3]}
4. Bxe7 {[%clk 0:03:02.1]} 4... Nxe7 {[%clk 0:02:58.1]} 5. Nbd2 {[%clk
0:03:02.2]} 5... b6 {[%clk 0:02:58.7]} 6. e3 {[%clk 0:03:02.5]} 6... O-O {[%clk
0:02:58.4]} 7. c3 {[%clk 0:03:01]} 7... c5 {[%clk 0:02:56.8]} 8. Bd3 {[%clk
0:02:56.9]} 8... Ba6 {[%clk 0:02:56.5]} 9. Bxa6 {[%clk 0:02:57]} 9... Nxa6
{[%clk 0:02:56.1]} 10. Ne5 {[%clk 0:02:57.3]} 10... Nb8 {[%clk 0:02:55.7]} 11.
f4 {[%clk 0:02:56.8]} 11... Nbc6 {[%clk 0:02:55.8]} 12. Ndf3 {[%clk 0:02:55.1]}
12... f6 {[%clk 0:02:55.7]} 13. Nxc6 {[%clk 0:02:51.6]} 13... Nxc6 {[%clk
0:02:56.6]} 14. O-O {[%clk 0:02:49.3]} 14... Qd6 {[%clk 0:02:56.2]} 15. Qe1
{[%clk 0:02:42.3]} 15... Rae8 {[%clk 0:02:52.5]} 16. Qh4 {[%clk 0:02:38.7]}
16... e5 {[%clk 0:02:49.5]} 17. Rae1 {[%clk 0:02:27.9]} 17... e4 {[%clk
0:02:49]} 18. Nd2 {[%clk 0:02:20.7]} 18... c4 {[%clk 0:02:49]} 19. f5 {[%clk
0:02:15.6]} 19... a5 {[%clk 0:02:44.9]} 20. g4 {[%clk 0:02:08.8]} 20... h6
{[%clk 0:02:44.7]} 21. Rf4 {[%clk 0:01:58.5]} 21... b5 {[%clk 0:02:43.3]} 22. a3
{[%clk 0:01:57.1]} 22... Rb8 {[%clk 0:02:42.7]} 23. Qg3 {[%clk 0:01:55.5]} 23...
Rf7 {[%clk 0:02:34.7]} 24. h4 {[%clk 0:01:54.8]} 24... b4 {[%clk 0:02:33.7]} 25.
axb4 {[%clk 0:01:54.4]} 25... axb4 {[%clk 0:02:33.6]} 26. g5 {[%clk 0:01:54.3]}
26... hxg5 {[%clk 0:02:31.8]} 27. hxg5 {[%clk 0:01:54.1]} 27... fxg5 {[%clk
0:02:29.4]} 28. Qxg5 {[%clk 0:01:50.8]} 28... bxc3 {[%clk 0:02:29.4]} 29. bxc3
{[%clk 0:01:50.4]} 29... Rb2 {[%clk 0:02:26.9]} 30. Re2 {[%clk 0:01:39.1]} 30...
Qf6 {[%clk 0:02:01.8]} 31. Qg3 {[%clk 0:01:16.8]} 31... Rc2 {[%clk 0:01:57.7]}
32. Rh2 {[%clk 0:01:16.3]} 32... Ra7 {[%clk 0:01:31.8]} 33. Qh3 {[%clk
0:00:54.6]} 33... Rxc3 {[%clk 0:00:55.9]} 34. Qh8+ {[%clk 0:00:35.6]} 34... Kf7
{[%clk 0:00:55.6]} 35. Qc8 {[%clk 0:00:36.1]} 35... Ne7 {[%clk 0:00:50.3]} 36.
Qb8 {[%clk 0:00:22.3]} 36... Ra1+ {[%clk 0:00:49.3]} 37. Nf1 {[%clk 0:00:22.3]}
37... Rxe3 {[%clk 0:00:29.6]} 38. Rh8 {[%clk 0:00:09.8]} 38... Qg5+ {[%clk
0:00:20.2]} 39. Kf2 {[%clk 0:00:10.2]} 39... Ra2+ {[%clk 0:00:07.2]} 40. Kxe3
{[%clk 0:00:08.1]} 40... Qg1+ {[%clk 0:00:07.3]} 0-1

[Event "Early-Titled-Tuesday-Blitz-February-20-2024"]
[Site "Chess.com"]
[Date "2024.02.20"]
[Round "10"]
[White "NewYearGirl"]
[Black "mary-sanna"]
[Result "1-0"]
[WhiteElo "2356"]
[BlackElo "2161"]
[TimeControl "180+1"]
[EndTime "9:58:29 PST"]
[Termination "NewYearGirl won by checkmate"]

1. e4 {[%clk 0:02:40.9]} 1... c5 {[%clk 0:02:59.8]} 2. Nf3 {[%clk 0:02:29.4]}
2... Nc6 {[%clk 0:02:59.8]} 3. d4 {[%clk 0:02:23.8]} 3... cxd4 {[%clk
0:03:00.7]} 4. Nxd4 {[%clk 0:02:22.9]} 4... Nf6 {[%clk 0:03:00.7]} 5. Nc3 {[%clk
0:02:23.1]} 5... e5 {[%clk 0:03:00.8]} 6. Ndb5 {[%clk 0:02:21.8]} 6... d6 {[%clk
0:02:59.9]} 7. Nd5 {[%clk 0:02:21.4]} 7... Nxd5 {[%clk 0:02:59.9]} 8. exd5
{[%clk 0:02:21.6]} 8... Nb8 {[%clk 0:03:00.1]} 9. a4 {[%clk 0:02:21.5]} 9... a6
{[%clk 0:02:52.4]} 10. Na3 {[%clk 0:02:20.8]} 10... Be7 {[%clk 0:02:51.1]} 11.
Be2 {[%clk 0:02:19.8]} 11... O-O {[%clk 0:02:50.9]} 12. O-O {[%clk 0:02:19.6]}
12... Nd7 {[%clk 0:02:31.5]} 13. Nc4 {[%clk 0:01:54.4]} 13... Qc7 {[%clk
0:02:23.2]} 14. Be3 {[%clk 0:01:51.3]} 14... b6 {[%clk 0:02:14.6]} 15. f4 {[%clk
0:01:39.5]} 15... Bb7 {[%clk 0:01:40.6]} 16. f5 {[%clk 0:01:35.4]} 16... b5
{[%clk 0:01:37.2]} 17. Nd2 {[%clk 0:01:16.5]} 17... Bxd5 {[%clk 0:01:29.5]} 18.
Nf3 {[%clk 0:01:09.6]} 18... Bc4 {[%clk 0:01:26.6]} 19. b3 {[%clk 0:01:08]}
19... Bxe2 {[%clk 0:01:26.1]} 20. Qxe2 {[%clk 0:01:08.3]} 20... b4 {[%clk
0:01:21.4]} 21. Rac1 {[%clk 0:00:57.3]} 21... Rac8 {[%clk 0:01:19.8]} 22. Nd2
{[%clk 0:00:42.1]} 22... Qc6 {[%clk 0:01:10.5]} 23. a5 {[%clk 0:00:35.8]} 23...
d5 {[%clk 0:01:08.2]} 24. Bf2 {[%clk 0:00:28.6]} 24... Bc5 {[%clk 0:01:03.9]}
25. Bxc5 {[%clk 0:00:24.3]} 25... Qxc5+ {[%clk 0:01:03.9]} 26. Kh1 {[%clk
0:00:25]} 26... Qxa5 {[%clk 0:01:03.1]} 27. f6 {[%clk 0:00:21.2]} 27... Nxf6
{[%clk 0:01:02.7]} 28. Rxf6 {[%clk 0:00:17.7]} 28... gxf6 {[%clk 0:01:00.9]} 29.
Nf3 {[%clk 0:00:18.3]} 29... Qb5 {[%clk 0:00:45.5]} 30. Qf2 {[%clk 0:00:18]}
30... Qd7 {[%clk 0:00:37]} 31. Nh4 {[%clk 0:00:18.7]} 31... Qg4 {[%clk
0:00:35.9]} 32. g3 {[%clk 0:00:17.6]} 32... Kh8 {[%clk 0:00:34.6]} 33. Qxf6+
{[%clk 0:00:17.3]} 33... Qg7 {[%clk 0:00:34.3]} 34. Qf5 {[%clk 0:00:18]} 34...
e4 {[%clk 0:00:30.6]} 35. Rf1 {[%clk 0:00:18.5]} 35... Rxc2 {[%clk 0:00:29.5]}
36. Qh3 {[%clk 0:00:18.4]} 36... e3 {[%clk 0:00:27.2]} 37. Nf5 {[%clk
0:00:18.8]} 37... Qb2 {[%clk 0:00:25.9]} 38. Nxe3 {[%clk 0:00:18.4]} 38... Re2
{[%clk 0:00:23.2]} 39. Ng4 {[%clk 0:00:18.9]} 39... f5 {[%clk 0:00:16.3]} 40.
Nh6 {[%clk 0:00:18.5]} 40... Qe5 {[%clk 0:00:14.2]} 41. Qh5 {[%clk 0:00:18.5]}
41... Qe4+ {[%clk 0:00:14]} 42. Rf3 {[%clk 0:00:17.8]} 42... Re1+ {[%clk
0:00:13.4]} 43. Kg2 {[%clk 0:00:18.5]} 43... Re2+ {[%clk 0:00:13.7]} 44. Kh3
{[%clk 0:00:19.3]} 44... f4 {[%clk 0:00:10.9]} 45. Nf7+ {[%clk 0:00:20]} 45...
Rxf7 {[%clk 0:00:09.7]} 46. Qxf7 {[%clk 0:00:20.9]} 46... Qxf3 {[%clk
0:00:07.3]} 47. Qf8# {[%clk 0:00:21.2]} 1-0

[Event "Early-Titled-Tuesday-Blitz-February-20-2024"]
[Site "Chess.com"]
[Date "2024.02.20"]
[Round "10"]
[White "MaestroCheck"]
[Black "Atousa"]
[Result "1-0"]
[WhiteElo "2545"]
[BlackElo "2439"]
[TimeControl "180+1"]
[EndTime "9:58:30 PST"]
[Termination "MaestroCheck won on time"]

1. e4 {[%clk 0:03:00.9]} 1... c5 {[%clk 0:02:57.2]} 2. Nc3 {[%clk 0:02:59.3]}
2... a6 {[%clk 0:02:55.9]} 3. g3 {[%clk 0:02:58.6]} 3... b5 {[%clk 0:02:52.9]}
4. Bg2 {[%clk 0:02:58.8]} 4... Bb7 {[%clk 0:02:52.1]} 5. d3 {[%clk 0:02:49.2]}
5... e6 {[%clk 0:02:50.8]} 6. Nh3 {[%clk 0:02:48.1]} 6... b4 {[%clk 0:02:48.1]}
7. Ne2 {[%clk 0:02:46.3]} 7... d5 {[%clk 0:02:48.4]} 8. O-O {[%clk 0:02:46.5]}
8... Nf6 {[%clk 0:02:44.5]} 9. e5 {[%clk 0:02:45.4]} 9... Nfd7 {[%clk
0:02:44.4]} 10. f4 {[%clk 0:02:46]} 10... Be7 {[%clk 0:02:44.2]} 11. g4 {[%clk
0:02:38.8]} 11... h5 {[%clk 0:02:42.8]} 12. Ng3 {[%clk 0:02:34.9]} 12... hxg4
{[%clk 0:02:41]} 13. Qxg4 {[%clk 0:02:35.8]} 13... g6 {[%clk 0:02:40.1]} 14. c4
{[%clk 0:02:27.5]} 14... Nb6 {[%clk 0:02:34.2]} 15. Nf2 {[%clk 0:02:23.8]} 15...
Nc6 {[%clk 0:02:31.1]} 16. b3 {[%clk 0:02:15.5]} 16... Rh4 {[%clk 0:02:20.1]}
17. Qd1 {[%clk 0:02:03.3]} 17... Qd7 {[%clk 0:02:20.4]} 18. Be3 {[%clk 0:02:02]}
18... O-O-O {[%clk 0:02:19.9]} 19. h3 {[%clk 0:01:56.7]} 19... d4 {[%clk
0:02:19.3]} 20. Bd2 {[%clk 0:01:56.1]} 20... Rdh8 {[%clk 0:02:18.8]} 21. Nfe4
{[%clk 0:01:54.6]} 21... Kb8 {[%clk 0:02:03.2]} 22. a3 {[%clk 0:01:53.3]} 22...
a5 {[%clk 0:01:57.2]} 23. axb4 {[%clk 0:01:53.4]} 23... axb4 {[%clk 0:01:57.9]}
24. Ra2 {[%clk 0:01:51.8]} 24... Qd8 {[%clk 0:01:43.9]} 25. Be1 {[%clk
0:01:46.3]} 25... R4h7 {[%clk 0:01:17.4]} 26. Qe2 {[%clk 0:01:38.2]} 26... g5
{[%clk 0:01:09]} 27. f5 {[%clk 0:01:23.2]} 27... Nxe5 {[%clk 0:01:02.1]} 28. f6
{[%clk 0:01:22.3]} 28... Bd6 {[%clk 0:00:59.5]} 29. Nxd6 {[%clk 0:01:15.1]}
29... Qxd6 {[%clk 0:00:59.3]} 30. Ne4 {[%clk 0:00:55.5]} 30... Qc7 {[%clk
0:00:50.5]} 31. Bg3 {[%clk 0:00:54.4]} 31... Rxh3 {[%clk 0:00:44.6]} 32. Bxh3
{[%clk 0:00:49.1]} 32... Rxh3 {[%clk 0:00:45.5]} 33. Qg2 {[%clk 0:00:42]} 33...
g4 {[%clk 0:00:34.3]} 34. Bxe5 {[%clk 0:00:38.1]} 34... Qxe5 {[%clk 0:00:33]}
35. Qxg4 {[%clk 0:00:38.6]} 35... Bxe4 {[%clk 0:00:26.1]} 36. Qxh3 {[%clk
0:00:37.7]} 36... Qg5+ {[%clk 0:00:08.8]} 37. Kh2 {[%clk 0:00:32.6]} 37... Qe5+
{[%clk 0:00:09]} 38. Qg3 {[%clk 0:00:32.6]} 38... Qxg3+ {[%clk 0:00:07.3]} 39.
Kxg3 {[%clk 0:00:33.2]} 39... Bxd3 {[%clk 0:00:08.1]} 40. Rh1 {[%clk 0:00:31.5]}
40... Bg6 {[%clk 0:00:08.1]} 41. Kf4 {[%clk 0:00:31.3]} 41... Kc7 {[%clk
0:00:08.3]} 42. Ra7+ {[%clk 0:00:29.7]} 42... Kd6 {[%clk 0:00:08.8]} 43. Rh8
{[%clk 0:00:27.6]} 43... e5+ {[%clk 0:00:09.3]} 44. Kf3 {[%clk 0:00:26.2]} 44...
e4+ {[%clk 0:00:09.9]} 45. Kf4 {[%clk 0:00:26.9]} 45... e3 {[%clk 0:00:09]} 46.
Re7 {[%clk 0:00:25.2]} 46... Nd7 {[%clk 0:00:07.6]} 47. Rd8 {[%clk 0:00:25.1]}
47... Bf5 {[%clk 0:00:07.3]} 48. Kxf5 {[%clk 0:00:24.9]} 48... d3 {[%clk
0:00:07.9]} 49. Rdxd7+ {[%clk 0:00:25.5]} 49... Kc6 {[%clk 0:00:08.6]} 50. Rxd3
{[%clk 0:00:25.6]} 1-0

[Event "Early-Titled-Tuesday-Blitz-February-20-2024"]
[Site "Chess.com"]
[Date "2024.02.20"]
[Round "10"]
[White "EdmundPlayer"]
[Black "MaxLeto"]
[Result "0-1"]
[WhiteElo "2278"]
[BlackElo "2529"]
[TimeControl "180+1"]
[EndTime "9:58:31 PST"]
[Termination "MaxLeto won by checkmate"]

1. Nf3 {[%clk 0:03:00.9]} 1... h5 {[%clk 0:01:58.2]} 2. b3 {[%clk 0:02:57.2]}
2... h4 {[%clk 0:01:59.1]} 3. Bb2 {[%clk 0:02:53.3]} 3... h3 {[%clk 0:01:58.9]}
4. gxh3 {[%clk 0:02:52.8]} 4... d5 {[%clk 0:01:59.4]} 5. Rg1 {[%clk 0:02:50.9]}
5... Nf6 {[%clk 0:01:58.8]} 6. Ng5 {[%clk 0:02:23.8]} 6... Bf5 {[%clk
0:01:53.9]} 7. d3 {[%clk 0:02:20.2]} 7... Nc6 {[%clk 0:01:51.2]} 8. Nd2 {[%clk
0:02:18.4]} 8... e5 {[%clk 0:01:47.2]} 9. e4 {[%clk 0:02:05.7]} 9... Bg6 {[%clk
0:01:47.6]} 10. Bg2 {[%clk 0:01:50.8]} 10... Qd7 {[%clk 0:01:40.2]} 11. exd5
{[%clk 0:01:10.7]} 11... Nxd5 {[%clk 0:01:40]} 12. Qg4 {[%clk 0:00:52.9]} 12...
Bf5 {[%clk 0:01:35.7]} 13. Qg3 {[%clk 0:00:50.9]} 13... f6 {[%clk 0:01:17.2]}
14. Nge4 {[%clk 0:00:38.9]} 14... Nf4 {[%clk 0:01:17.6]} 15. h4 {[%clk
0:00:20.8]} 15... O-O-O {[%clk 0:01:17.4]} 16. Nc4 {[%clk 0:00:20.2]} 16... Nd4
{[%clk 0:01:12.7]} 17. Bxd4 {[%clk 0:00:12.8]} 17... Qxd4 {[%clk 0:01:13.6]} 18.
Rd1 {[%clk 0:00:06.1]} 18... Bxe4 {[%clk 0:01:02.6]} 19. Bxe4 {[%clk 0:00:05.7]}
19... Qc3+ {[%clk 0:01:02.7]} 20. Kf1 {[%clk 0:00:05.4]} 20... Qxc2 {[%clk
0:00:58.8]} 21. Re1 {[%clk 0:00:04.9]} 21... Kb8 {[%clk 0:00:52.3]} 22. Qe3
{[%clk 0:00:04]} 22... Rxh4 {[%clk 0:00:38.7]} 23. Rc1 {[%clk 0:00:03.9]} 23...
Qxa2 {[%clk 0:00:37.3]} 24. Na5 {[%clk 0:00:04.1]} 24... Qxa5 {[%clk 0:00:33.2]}
25. b4 {[%clk 0:00:02.9]} 25... Qb6 {[%clk 0:00:27.7]} 26. Qxb6 {[%clk 0:00:02]}
26... axb6 {[%clk 0:00:28]} 27. Rg3 {[%clk 0:00:01.9]} 27... g5 {[%clk
0:00:27.1]} 28. Ra1 {[%clk 0:00:01.9]} 28... Bxb4 {[%clk 0:00:27.3]} 29. Rb1
{[%clk 0:00:01.9]} 29... Bc5 {[%clk 0:00:27.5]} 30. Rb2 {[%clk 0:00:01]} 30...
Bd4 {[%clk 0:00:27.7]} 31. Rc2 {[%clk 0:00:01.4]} 31... Rxh2 {[%clk 0:00:27.9]}
32. Ke1 {[%clk 0:00:01.1]} 32... b5 {[%clk 0:00:24.1]} 33. Kd2 {[%clk 0:00:02]}
33... b4 {[%clk 0:00:24.5]} 34. Ra2 {[%clk 0:00:02.2]} 34... b3 {[%clk 0:00:24]}
35. Ra4 {[%clk 0:00:03.1]} 35... b2 {[%clk 0:00:23.9]} 36. Rb4 {[%clk 0:00:04]}
36... b6 {[%clk 0:00:23.4]} 37. Rb5 {[%clk 0:00:03.3]} 37... Rxf2+ {[%clk
0:00:22.1]} 38. Ke1 {[%clk 0:00:03.1]} 38... Rc2 {[%clk 0:00:21.1]} 39. Rb3
{[%clk 0:00:03.3]} 39... Rc1+ {[%clk 0:00:17.4]} 40. Kd2 {[%clk 0:00:03.4]}
40... b1=Q {[%clk 0:00:17]} 41. Rxb1 {[%clk 0:00:04]} 41... Rxb1 {[%clk
0:00:17.9]} 42. Rf3 {[%clk 0:00:03.5]} 42... Rh8 {[%clk 0:00:17.6]} 43. Rf1
{[%clk 0:00:03]} 43... Rh2+ {[%clk 0:00:15.6]} 44. Bg2 {[%clk 0:00:02.7]} 44...
Rxg2+ {[%clk 0:00:15.6]} 45. Rf2 {[%clk 0:00:03.6]} 45... Rxf2# {[%clk
0:00:15.8]} 0-1

[Event "Early-Titled-Tuesday-Blitz-February-20-2024"]
[Site "Chess.com"]
[Date "2024.02.20"]
[Round "10"]
[White "arnash_bauyrzhan"]
[Black "abeljusto"]
[Result "1-0"]
[WhiteElo "2263"]
[BlackElo "2097"]
[TimeControl "180+1"]
[EndTime "9:58:35 PST"]
[Termination "arnash_bauyrzhan won on time"]

1. e4 {[%clk 0:03:00.9]} 1... c5 {[%clk 0:02:59.7]} 2. Nf3 {[%clk 0:03:00.3]}
2... Nc6 {[%clk 0:02:59.5]} 3. Bb5 {[%clk 0:02:59.7]} 3... g6 {[%clk 0:02:57.8]}
4. O-O {[%clk 0:02:59.3]} 4... Bg7 {[%clk 0:02:57.1]} 5. Re1 {[%clk 0:02:59.1]}
5... Nf6 {[%clk 0:02:56.2]} 6. c3 {[%clk 0:02:56.2]} 6... O-O {[%clk 0:02:51.7]}
7. d4 {[%clk 0:02:55.1]} 7... d5 {[%clk 0:02:51]} 8. e5 {[%clk 0:02:54.7]} 8...
Ne4 {[%clk 0:02:51.1]} 9. Bxc6 {[%clk 0:02:49.5]} 9... bxc6 {[%clk 0:02:50.4]}
10. Nbd2 {[%clk 0:02:50]} 10... cxd4 {[%clk 0:02:44.6]} 11. cxd4 {[%clk
0:02:25.5]} 11... Qb6 {[%clk 0:01:52.9]} 12. Nxe4 {[%clk 0:02:20.5]} 12... dxe4
{[%clk 0:01:52.7]} 13. Rxe4 {[%clk 0:02:18.1]} 13... Bf5 {[%clk 0:01:52.6]} 14.
Re1 {[%clk 0:02:14.5]} 14... Bg4 {[%clk 0:01:15.2]} 15. Be3 {[%clk 0:01:54.9]}
15... Qxb2 {[%clk 0:01:13.5]} 16. h3 {[%clk 0:01:53.1]} 16... Bf5 {[%clk
0:01:06.4]} 17. Qc1 {[%clk 0:01:33.6]} 17... Qxc1 {[%clk 0:01:02.2]} 18. Raxc1
{[%clk 0:01:33.6]} 18... Rac8 {[%clk 0:00:40.5]} 19. Rc5 {[%clk 0:01:32.8]}
19... Be4 {[%clk 0:00:38.2]} 20. Nd2 {[%clk 0:01:31.9]} 20... Bd5 {[%clk
0:00:37.5]} 21. a4 {[%clk 0:01:29.6]} 21... Rb8 {[%clk 0:00:34.8]} 22. a5 {[%clk
0:01:24.8]} 22... a6 {[%clk 0:00:33.7]} 23. Nc4 {[%clk 0:01:18.6]} 23... Rb4
{[%clk 0:00:26]} 24. Nb6 {[%clk 0:01:15.3]} 24... e6 {[%clk 0:00:21.9]} 25. Ra1
{[%clk 0:01:05.8]} 25... f6 {[%clk 0:00:18.8]} 26. f4 {[%clk 0:01:00.1]} 26...
fxe5 {[%clk 0:00:18.4]} 27. fxe5 {[%clk 0:00:59.3]} 27... Rb2 {[%clk 0:00:15.4]}
28. Nxd5 {[%clk 0:00:54.6]} 28... cxd5 {[%clk 0:00:15.2]} 29. Rc6 {[%clk
0:00:54.9]} 29... Re2 {[%clk 0:00:09.6]} 30. Ra3 {[%clk 0:00:54.1]} 30... Rb8
{[%clk 0:00:08.1]} 31. Rb6 {[%clk 0:00:35.3]} 31... Rc8 {[%clk 0:00:07.2]} 32.
Rxe6 {[%clk 0:00:33.6]} 32... Rcc2 {[%clk 0:00:06.4]} 33. Rxa6 {[%clk
0:00:13.9]} 33... Rxg2+ {[%clk 0:00:05.9]} 34. Kf1 {[%clk 0:00:13]} 34... Rh2
{[%clk 0:00:04.9]} 35. Ra8+ {[%clk 0:00:11.7]} 35... Kf7 {[%clk 0:00:03.9]} 36.
a6 {[%clk 0:00:06.1]} 36... Rh1+ {[%clk 0:00:01.6]} 37. Bg1 {[%clk 0:00:05.5]}
37... Rc1+ {[%clk 0:00:01.3]} 38. Kf2 {[%clk 0:00:05.9]} 38... Rhxg1 {[%clk
0:00:01.2]} 39. Rf3+ {[%clk 0:00:06.3]} 1-0

[Event "Early-Titled-Tuesday-Blitz-February-20-2024"]
[Site "Chess.com"]
[Date "2024.02.20"]
[Round "10"]
[White "Dinosaurio_1975"]
[Black "Rosh1610"]
[Result "0-1"]
[WhiteElo "2591"]
[BlackElo "2422"]
[TimeControl "180+1"]
[EndTime "9:58:37 PST"]
[Termination "Rosh1610 won by resignation"]

1. e4 {[%clk 0:03:00.9]} 1... c5 {[%clk 0:02:55.8]} 2. Nf3 {[%clk 0:02:59.8]}
2... d6 {[%clk 0:02:51.7]} 3. d4 {[%clk 0:02:59.2]} 3... cxd4 {[%clk 0:02:51.3]}
4. Nxd4 {[%clk 0:03:00.1]} 4... Nf6 {[%clk 0:02:50.6]} 5. Nc3 {[%clk 0:03:00.7]}
5... a6 {[%clk 0:02:47.1]} 6. Be2 {[%clk 0:02:54]} 6... e5 {[%clk 0:02:40.9]} 7.
Nb3 {[%clk 0:02:53.9]} 7... Be7 {[%clk 0:02:41.2]} 8. Be3 {[%clk 0:02:54.5]}
8... Be6 {[%clk 0:02:40.7]} 9. g4 {[%clk 0:02:54.2]} 9... b5 {[%clk 0:02:36.6]}
10. Nd5 {[%clk 0:02:49.2]} 10... Bxd5 {[%clk 0:02:31.1]} 11. exd5 {[%clk
0:02:50.1]} 11... h6 {[%clk 0:02:30.9]} 12. h4 {[%clk 0:02:49.6]} 12... Nbd7
{[%clk 0:02:29.7]} 13. Qd2 {[%clk 0:02:46.9]} 13... Nb6 {[%clk 0:02:28.8]} 14.
Bxb6 {[%clk 0:02:41.4]} 14... Qxb6 {[%clk 0:02:27.9]} 15. O-O-O {[%clk
0:02:41.8]} 15... Qxf2 {[%clk 0:02:25]} 16. Rdf1 {[%clk 0:02:40.3]} 16... Qb6
{[%clk 0:02:23.1]} 17. g5 {[%clk 0:02:30.6]} 17... hxg5 {[%clk 0:01:59.8]} 18.
hxg5 {[%clk 0:02:31.5]} 18... Rxh1 {[%clk 0:01:59.1]} 19. Rxh1 {[%clk
0:02:28.9]} 19... Ne4 {[%clk 0:01:59.4]} 20. Qd3 {[%clk 0:02:21.7]} 20... Bxg5+
{[%clk 0:01:26.1]} 21. Kb1 {[%clk 0:02:19.9]} 21... Nf2 {[%clk 0:01:25.8]} 22.
Rh8+ {[%clk 0:01:57.3]} 22... Ke7 {[%clk 0:01:20.5]} 23. Qh7 {[%clk 0:01:56]}
23... Rxh8 {[%clk 0:01:05.4]} 24. Qxh8 {[%clk 0:01:56.9]} 24... Qe3 {[%clk
0:01:00.7]} 25. Qh5 {[%clk 0:01:44.3]} 25... g6 {[%clk 0:00:44.9]} 26. Qf3
{[%clk 0:01:41.4]} 26... Qxf3 {[%clk 0:00:40]} 27. Bxf3 {[%clk 0:01:42.3]} 27...
f5 {[%clk 0:00:38.8]} 28. Be2 {[%clk 0:01:41]} 28... Be3 {[%clk 0:00:38.7]} 29.
c4 {[%clk 0:01:40.7]} 29... bxc4 {[%clk 0:00:37.7]} 30. Bxc4 {[%clk 0:01:41.6]}
30... g5 {[%clk 0:00:38.3]} 31. Bxa6 {[%clk 0:01:41.4]} 31... g4 {[%clk
0:00:38.8]} 32. Nc1 {[%clk 0:01:35.5]} 32... f4 {[%clk 0:00:38.1]} 33. Nd3
{[%clk 0:01:08.8]} 33... e4 {[%clk 0:00:26.6]} 34. Ne1 {[%clk 0:00:20.5]} 34...
f3 {[%clk 0:00:20.9]} 35. Bf1 {[%clk 0:00:14.9]} 35... g3 {[%clk 0:00:20.6]} 36.
Kc2 {[%clk 0:00:15.6]} 36... Nd3 {[%clk 0:00:20.2]} 37. Bxd3 {[%clk 0:00:04.2]}
37... g2 {[%clk 0:00:21.1]} 38. Bxe4 {[%clk 0:00:02.4]} 38... g1=Q {[%clk
0:00:20.2]} 39. Nxf3 {[%clk 0:00:03.3]} 39... Qf2+ {[%clk 0:00:19.7]} 40. Kd3
{[%clk 0:00:04.2]} 40... Bf4 {[%clk 0:00:17.4]} 41. Nd4 {[%clk 0:00:01.4]} 41...
Qe3+ {[%clk 0:00:17.2]} 42. Kc4 {[%clk 0:00:01.8]} 42... Qxe4 {[%clk 0:00:18.1]}
43. a4 {[%clk 0:00:01.9]} 43... Be3 {[%clk 0:00:18.5]} 44. Kb5 {[%clk
0:00:02.8]} 44... Qxd4 {[%clk 0:00:19.4]} 0-1